fUST/lending_fUST_20240707
["ID","MTS","AMOUNT","RATE_DAILY","PERIOD"]
[331403758,1720347121520,-1167.97586208,0.00044912,30]
[331403759,1720347121532,-539.93,0.00044931,120]
[331403760,1720347121544,-863.71,0.00044931,120]
[331403761,1720347121556,-500.0,0.00044931,120]
[331403762,1720347121568,-758.3,0.00044931,120]
[331403763,1720347121580,-2277.09,0.00044931,120]
[331403764,1720347121591,-500.0,0.00044931,120]
[331403765,1720347121604,-500.0,0.00044931,120]
[331403766,1720347121615,-3622.16,0.00044931,120]
[331403767,1720347121627,-500.0,0.00044931,120]
[331403768,1720347121639,-4420.68,0.00044931,120]
[331403769,1720347121650,-2729.24,0.00044931,120]
[331403770,1720347121661,-1418.25,0.00044931,120]
[331403771,1720347121673,-2088.03,0.00044931,120]
[331403772,1720347121686,-28020.05,0.00044931,120]
[331403773,1720347121701,-500.0,0.00044931,120]
[331403774,1720347121713,-1013.3,0.00044931,120]
[331403775,1720347121725,-500.0,0.00044931,120]
[331403776,1720347121737,-1928.91,0.00044931,120]
[331403777,1720347121748,-16482.27,0.00044931,120]
[331403778,1720347121760,-500.0,0.00044931,120]
[331403779,1720347121772,-500.0,0.00044931,120]
[331403780,1720347121784,-500.0,0.00044931,120]
[331403781,1720347121798,-500.0,0.00044931,120]
[331403782,1720347121809,-1391.73,0.00044931,120]
[331403783,1720347121820,-980.42,0.00044931,120]
[331403784,1720347121832,-500.0,0.00044931,120]
[331403785,1720347121844,-717.05,0.00044931,60]
[331403786,1720347121855,-500.0,0.00044931,120]
[331403787,1720347121866,-500.0,0.00044931,120]
[331403788,1720347121878,-1322.06,0.00044931,120]
[331403789,1720347121890,-1100.84,0.00044931,120]
[331403790,1720347121902,-498.87233558,0.00044931,120]
[331403791,1720347121913,-2540.19,0.00044931,120]
[331403792,1720347121924,-544.99,0.00044931,120]
[331403793,1720347121937,-1098.97,0.00044931,120]
[331403794,1720347121948,-500.0,0.00044931,120]
[331403795,1720347121959,-500.0,0.00044931,120]
[331403796,1720347121971,-1343.21,0.00044931,120]
[331403797,1720347121982,-500.0,0.00044931,120]
[331403798,1720347121994,-500.0,0.00044931,120]
[331403799,1720347122004,-500.0,0.00044931,120]
[331403800,1720347122016,-500.0,0.00044931,120]
[331403801,1720347122027,-500.0,0.00044931,120]
[331403802,1720347122038,-500.0,0.00044931,120]
[331403803,1720347122051,-500.0,0.00044931,120]
[331403804,1720347122063,-500.0,0.00044931,120]
[331403805,1720347122076,-500.0,0.00044931,120]
[331403806,1720347122088,-500.0,0.00044931,120]
[331403807,1720347122101,-538.12,0.00044931,120]
[331403808,1720347122115,-500.0,0.00044931,120]
[331403809,1720347122127,-500.0,0.00044931,120]
[331403810,1720347122139,-933.38,0.00044931,120]
[331403811,1720347122151,-500.0,0.00044931,120]
[331403812,1720347122165,-500.0,0.00044931,120]
[331403813,1720347122178,-500.0,0.00044931,120]
[331403814,1720347122189,-500.0,0.00044931,120]
[331403815,1720347122203,-500.0,0.00044931,120]
[331403816,1720347122215,-500.0,0.00044931,120]
[331403817,1720347122228,-500.0,0.00044931,120]
[331403818,1720347122241,-1587.98,0.00044931,120]
[331403819,1720347122254,-500.0,0.00044931,120]
[331403820,1720347122265,-645.75,0.00044931,120]
[331403821,1720347122278,-500.0,0.00044931,120]
[331403822,1720347122290,-500.0,0.00044931,120]
[331403823,1720347122302,-500.0,0.00044931,120]
[331403824,1720347122313,-1804.61,0.00044931,120]
[331403825,1720347122325,-500.0,0.00044931,120]
[331403826,1720347122337,-500.0,0.00044931,120]
[331403827,1720347122349,-1400.55,0.00044931,120]
[331403828,1720347122360,-500.0,0.00044931,120]
[331403829,1720347122374,-764.78,0.00044931,120]
[331403830,1720347122386,-500.0,0.00044931,120]
[331403831,1720347122399,-336.171188,0.00044931,120]
[331403832,1720347122412,-638.28,0.00044931,120]
[331403833,1720347122425,-993.07,0.00044931,120]
[331403834,1720347122438,-500.0,0.00044931,120]
[331403835,1720347122451,-500.0,0.00044931,120]
[331403836,1720347122464,-879.0,0.00044931,120]
[331403837,1720347122477,-500.0,0.00044931,120]
[331403838,1720347122491,-1084.46,0.00044931,120]
[331403839,1720347122504,-2280.31,0.00044931,120]
[331403840,1720347122519,-506.68,0.00044931,120]
[331403841,1720347122532,-1460.56,0.00044931,120]
[331403842,1720347122549,-500.0,0.00044931,120]
[331403843,1720347122562,-1174.74,0.00044931,120]
[331403844,1720347122575,-500.0,0.00044931,120]
[331403845,1720347122589,-500.0,0.00044931,120]
[331403846,1720347122601,-500.0,0.00044931,120]
[331403847,1720347122614,-547.7,0.00044931,120]
[331403848,1720347122627,-500.0,0.00044931,120]
[331403849,1720347122640,-1275.26,0.00044931,120]
[331403850,1720347122654,-500.0,0.00044931,120]
[331403851,1720347122667,-620.89,0.00044931,120]
[331403852,1720347122679,-2777.24,0.00044931,120]
[331403853,1720347122693,-500.0,0.00044931,120]
[331403854,1720347122707,-608.36,0.00044931,120]
[331403855,1720347122720,-500.0,0.00044931,120]
[331403856,1720347122734,-590.79,0.00044931,120]
[331403857,1720347122748,-500.0,0.00044931,120]
[331403858,1720347122761,-500.0,0.00044931,120]
[331403859,1720347122774,-595.38,0.00044931,120]
[331403860,1720347122788,-844.48,0.00044931,120]
[331403861,1720347122802,-500.0,0.00044931,120]
[331403862,1720347122814,-500.0,0.00044931,120]
[331403863,1720347122827,-500.0,0.00044931,120]
[331403864,1720347122840,-1229.15,0.00044931,120]
[331403865,1720347122853,-33955.97,0.00044931,120]
[331403866,1720347122868,-529.27986606,0.00044931,120]
[331403867,1720347122882,-500.0,0.00044931,120]
[331403868,1720347122895,-620.32,0.00044931,120]
[331403869,1720347122910,-500.0,0.00044931,120]
[331403870,1720347122924,-1166.72,0.00044931,120]
[331403871,1720347122938,-1466.22,0.00044931,120]
[331403872,1720347122950,-500.0,0.00044931,120]
[331403873,1720347122964,-529.53,0.00044931,120]
[331403874,1720347122977,-614.6812206,0.00044931,120]
[331403875,1720347122989,-500.0,0.00044931,120]
[331403876,1720347123002,-500.0,0.00044931,120]
[331403877,1720347123015,-500.0,0.00044931,120]
[331403878,1720347123029,-500.0,0.00044931,120]
[331403879,1720347123044,-500.0,0.00044931,120]
[331403880,1720347123058,-1741.41,0.00044931,120]
[331403881,1720347123244,-500.0,0.00044931,120]
[331403882,1720347123264,-500.0,0.00044931,120]
[331403883,1720347123276,-500.0,0.00044931,120]
[331403884,1720347123286,-1266.15,0.00044931,120]
[331403885,1720347123297,-500.0,0.00044931,120]
[331403886,1720347123308,-500.0,0.00044931,120]
[331403887,1720347123318,-500.0,0.00044931,120]
[331403888,1720347123328,-1189.37,0.00044931,120]
[331403889,1720347123339,-500.0,0.00044931,120]
[331403890,1720347123351,-500.0,0.00044931,120]
[331403891,1720347123361,-500.0,0.00044931,120]
[331403892,1720347123371,-500.0,0.00044931,120]
[331403893,1720347123380,-1679.86,0.00044931,120]
[331403894,1720347123392,-844.82,0.00044931,120]
[331403895,1720347123402,-564.97,0.00044931,120]
[331403896,1720347123412,-500.0,0.00044931,120]
[331403897,1720347123423,-1297.58,0.00044931,120]
[331403898,1720347123434,-1090.22,0.00044931,120]
[331403899,1720347123443,-500.0,0.00044931,120]
[331403900,1720347123453,-500.0,0.00044931,120]
[331403901,1720347123463,-514.22531649,0.00044931,120]
[331403902,1720347123474,-500.0,0.00044931,120]
[331403903,1720347123484,-1360.1,0.00044931,120]
[331403904,1720347123494,-731.34,0.00044931,120]
[331403905,1720347123504,-500.0,0.00044931,120]
[331403906,1720347123514,-500.0,0.00044931,120]
[331403907,1720347123524,-500.0,0.00044931,120]
[331403908,1720347123533,-500.0,0.00044931,120]
[331403909,1720347123543,-500.0,0.00044931,120]
[331403910,1720347123552,-1170.99,0.00044931,120]
[331403911,1720347123562,-261.05813028,0.00044931,120]
[331403912,1720347123571,-17957.62,0.00044931,120]
[331403913,1720347123581,-500.0,0.00044931,120]
[331403914,1720347123592,-500.0,0.00044931,120]
[331403915,1720347123606,-2155.79,0.00044931,120]
[331403916,1720347123617,-500.0,0.00044931,120]
[331403917,1720347123627,-500.0,0.00044931,120]
[331403918,1720347123638,-990.62,0.00044931,120]
[331403919,1720347123647,-760.13,0.00044931,120]
[331403920,1720347123657,-226.85666291,0.00044931,120]
[331403921,1720347123668,-169.20143181,0.00044931,120]
[331403922,1720347123678,-1274.08,0.00044931,120]
[331403923,1720347123689,-500.0,0.00044931,120]
[331403924,1720347123699,-500.0,0.00044931,120]
[331403925,1720347123709,-806.21,0.00044931,120]
[331403926,1720347123719,-500.0,0.00044931,120]
[331403927,1720347123732,-500.0,0.00044931,120]
[331403928,1720347123742,-834.54,0.00044931,120]
[331403929,1720347123752,-555.67,0.00044931,120]
[331403930,1720347123762,-417.41549551,0.00044931,120]
[331403931,1720347123772,-886.97,0.00044931,120]
[331403932,1720347123781,-19633.38,0.00044931,120]
[331403933,1720347123793,-500.0,0.00044931,120]
[331403934,1720347123804,-500.0,0.00044931,120]
[331403935,1720347123814,-868.77,0.00044931,120]
[331403936,1720347123823,-997.77,0.00044931,120]
[331403937,1720347123835,-1022.9,0.00044931,120]
[331403938,1720347123844,-686.48,0.00044931,120]
[331403939,1720347123855,-502.59928523,0.00044931,120]
[331403940,1720347123865,-3272.31,0.00044931,120]
[331403941,1720347123876,-500.0,0.00044931,120]
[331403942,1720347123887,-500.0,0.00044931,120]
[331403943,1720347123898,-508.29270027,0.00044931,120]
[331403944,1720347123907,-500.0,0.00044931,120]
[331403945,1720347123917,-500.0,0.00044931,2]
[331403946,1720347123928,-800.53,0.00044931,120]
[331403947,1720347123938,-764.61,0.00044931,120]
[331403948,1720347123949,-500.0,0.00044931,120]
[331403949,1720347123959,-500.0,0.00044931,120]
[331403950,1720347123969,-500.0,0.00044931,120]
[331403951,1720347123979,-500.0,0.00044931,120]
[331403952,1720347123989,-515.08,0.00044931,120]
[331403953,1720347123999,-500.0,0.00044931,120]
[331403954,1720347124009,-652.59,0.00044931,120]
[331403955,1720347124019,-164.4247252,0.00044931,120]
[331403956,1720347124029,-539.31,0.00044931,120]
[331403957,1720347124040,-500.0,0.00044931,120]
[331403958,1720347124050,-3819.92,0.00044931,120]
[331403959,1720347124059,-1472.32,0.00044931,7]
[331403960,1720347124070,-500.0,0.00044931,120]
[331403961,1720347124079,-529.59,0.00044931,120]
[331403962,1720347124089,-2352.27,0.00044931,120]
[331403963,1720347124099,-521.19451282,0.00044931,120]
[331403964,1720347124110,-595.19144142,0.00044931,120]
[331403965,1720347124121,-777.74,0.00044931,120]
[331403966,1720347124131,-500.0,0.00044931,120]
[331403967,1720347124141,-780.73,0.00044931,120]
[331403968,1720347124151,-500.0,0.00044931,120]
[331403969,1720347124161,-500.0,0.00044931,120]
[331403970,1720347124170,-500.0,0.00044931,120]
[331403971,1720347124180,-196.25352597,0.00044931,120]
[331403972,1720347124190,-671.8,0.00044931,120]
[331403973,1720347124200,-2174.43,0.00044931,120]
[331403974,1720347124210,-6995.33,0.00044931,120]
[331403975,1720347124221,-1875.52,0.00044931,120]
[331403976,1720347124231,-1180.04,0.00044931,120]
[331403977,1720347124241,-500.6,0.00044931,120]
[331403978,1720347124251,-500.0,0.00044931,120]
[331403979,1720347124262,-1990.29,0.00044931,120]
[331403980,1720347124272,-500.0,0.00044931,120]
[331403981,1720347124282,-500.0,0.00044931,120]
[331403982,1720347124292,-500.0,0.00044931,120]
[331403983,1720347124302,-1014.07,0.00044931,120]
[331403984,1720347124313,-193.1653715,0.00044931,120]
[331403985,1720347124322,-500.0,0.00044931,120]
[331403986,1720347124333,-1365.67,0.00044931,120]
[331403987,1720347124343,-500.0,0.00044931,120]
[331403988,1720347124353,-668.62,0.00044931,120]
[331403989,1720347124363,-500.0,0.00044931,120]
[331403990,1720347124373,-693.64,0.00044931,120]
[331403991,1720347124383,-197.93331565,0.00044931,120]
[331403992,1720347124393,-67758.47,0.00044931,120]
[331403993,1720347124403,-627.2,0.00044931,120]
[331403994,1720347124413,-800.11,0.00044931,120]
[331403995,1720347124423,-5309.62,0.00044931,120]
[331403996,1720347124433,-1034.58,0.00044931,120]
[331403997,1720347124443,-1285.7,0.00044931,120]
[331403998,1720347124453,-2445.93,0.00044931,120]
[331403999,1720347124463,-508.27,0.00044931,120]
[331404000,1720347124473,-500.0,0.00044931,120]
[331404001,1720347124484,-500.0,0.00044931,120]
[331404002,1720347124494,-1752.72,0.00044931,120]
[331404003,1720347124503,-500.0,0.00044931,120]
[331404004,1720347124514,-500.0,0.00044931,120]
[331404005,1720347124524,-11051.01,0.00044931,120]
[331404006,1720347124534,-8208.23,0.00044931,120]
[331404007,1720347124544,-11970.34,0.00044931,120]
[331404008,1720347124554,-9627.04,0.00044931,120]
[331404009,1720347124564,-500.0,0.00044931,120]
[331404010,1720347124573,-500.0,0.00044931,120]
[331404011,1720347124583,-500.0,0.00044931,120]
[331404012,1720347124593,-500.0,0.00044931,120]
[331404013,1720347124602,-4717.24,0.00044931,120]
[331404014,1720347124613,-5688.11,0.00044931,120]
[331404015,1720347124623,-4429.83,0.00044931,120]
[331404016,1720347124633,-4266.09,0.00044931,120]
[331404017,1720347124643,-500.0,0.00044931,120]
[331404018,1720347124653,-500.0,0.00044931,120]
[331404019,1720347124663,-2704.38,0.00044931,120]
[331404020,1720347124673,-748.13,0.00044931,120]
[331404021,1720347124683,-1541.47,0.00044931,120]
[331404022,1720347124693,-924.03,0.00044931,120]
[331404023,1720347124703,-500.0,0.00044931,120]
[331404024,1720347124713,-500.0,0.00044931,120]
[331404025,1720347124722,-500.0,0.00044931,120]
[331404026,1720347124732,-500.0,0.00044931,120]
[331404027,1720347124743,-627.00265028,0.00044931,120]
[331404028,1720347124753,-500.0,0.00044931,120]
[331404029,1720347124764,-844.26,0.00044931,120]
[331404030,1720347124774,-500.0,0.00044931,120]
[331404031,1720347124785,-12793.66,0.00044931,120]
[331404032,1720347124799,-500.0,0.00044931,120]
[331404033,1720347124808,-500.0,0.00044931,120]
[331404034,1720347124818,-500.0,0.00044931,120]
[331404035,1720347124828,-896.63,0.00044931,120]
[331404036,1720347124839,-500.0,0.00044931,120]
[331404037,1720347124849,-618.83,0.00044931,120]
[331404038,1720347124859,-500.0,0.00044931,120]
[331404039,1720347124870,-500.0,0.00044931,120]
[331404040,1720347124880,-7734.13,0.00044931,21]
[331404041,1720347124889,-6948.55,0.00044931,120]
[331404042,1720347124899,-2118.44,0.00044931,120]
[331404043,1720347124909,-197.44,0.00044931,120]
[331404044,1720347124919,-500.0,0.00044931,120]
[331404045,1720347124929,-1280.73,0.00044931,120]
[331404046,1720347124938,-500.0,0.00044931,120]
[331404047,1720347124949,-11105.94,0.00044931,120]
[331404048,1720347124959,-1021.51,0.00044931,120]
[331404049,1720347124970,-984.09,0.00044931,120]
[331404050,1720347124981,-500.0,0.00044931,120]
[331404051,1720347124990,-500.0,0.00044931,120]
[331404052,1720347125000,-500.0,0.00044931,120]
[331404053,1720347125010,-524.99689571,0.00044931,120]
[331404054,1720347125020,-772.24,0.00044931,120]
[331404055,1720347125031,-6036.83,0.00044931,120]
[331404056,1720347125040,-500.0,0.00044931,120]
[331404057,1720347125051,-2113.87,0.00044931,120]
[331404058,1720347125061,-15042.94,0.00044931,120]
[331404059,1720347125072,-887.89,0.00044931,120]
[331404060,1720347125082,-500.0,0.00044931,120]
[331404061,1720347125092,-366.4652922,0.00044931,120]
[331404062,1720347125102,-1240.73,0.00044931,120]
[331404063,1720347125114,-500.0,0.00044931,120]
[331404064,1720347125124,-500.0,0.00044931,120]
[331404065,1720347125135,-688.3,0.00044931,120]
[331404066,1720347125145,-600.4,0.00044931,120]
[331404067,1720347125155,-4477.61,0.00044931,120]
[331404068,1720347125165,-1561.9,0.00044931,120]
[331404069,1720347125175,-5599.32,0.00044931,120]
[331404070,1720347125186,-500.0,0.00044931,120]
[331404071,1720347125196,-500.0,0.00044931,120]
[331404072,1720347125206,-626.43,0.00044931,120]
[331404073,1720347125217,-500.0,0.00044931,120]
[331404074,1720347125227,-1633.14,0.00044931,120]
[331404075,1720347125237,-2966.16,0.00044931,120]
[331404076,1720347125247,-500.0,0.00044931,120]
[331404077,1720347125257,-500.0,0.00044931,120]
[331404078,1720347125267,-757.52,0.00044931,120]
[331404079,1720347125277,-1087.62,0.00044931,120]
[331404080,1720347125287,-500.0,0.00044931,120]
[331404081,1720347125298,-667.57,0.00044931,120]
[331404082,1720347125308,-500.0,0.00044931,120]
[331404083,1720347125318,-841.97,0.00044931,120]
[331404084,1720347125328,-545.83501096,0.00044931,120]
[331404085,1720347125338,-1485.95,0.00044931,120]
[331404086,1720347125348,-500.0,0.00044931,120]
[331404087,1720347125358,-2654.48,0.00044931,120]
[331404088,1720347125368,-2654.48,0.00044931,120]
[331404089,1720347125378,-500.0,0.00044931,120]
[331404090,1720347125388,-7224.58,0.00044931,120]
[331404091,1720347125398,-500.0,0.00044931,120]
[331404092,1720347125408,-500.0,0.00044931,120]
[331404093,1720347125418,-2906.61,0.00044931,120]
[331404094,1720347125429,-500.0,0.00044931,120]
[331404095,1720347125441,-778.38,0.00044931,120]
[331404096,1720347125465,-500.0,0.00044931,120]
[331404097,1720347125477,-641.22,0.00044931,120]
[331404098,1720347125487,-677.83,0.00044931,120]
[331404099,1720347125497,-500.0,0.00044931,120]
[331404100,1720347125507,-491.22106902,0.00044931,120]
[331404101,1720347125518,-367.17,0.00044931,120]
[331404102,1720347125529,-950.32,0.00044931,120]
[331404103,1720347125540,-500.0,0.00044931,120]
[331404104,1720347125551,-500.0,0.00044931,120]
[331404105,1720347125563,-791.08,0.00044931,120]
[331404106,1720347125574,-500.0,0.00044931,120]
[331404107,1720347125585,-4029.35,0.00044931,120]
[331404108,1720347125596,-216.19982751,0.00044931,120]
[331404109,1720347125606,-3693.57,0.00044931,120]
[331404110,1720347125616,-1139.2,0.00044931,120]
[331404111,1720347125627,-679.83,0.00044931,120]
[331404112,1720347125637,-500.0,0.00044931,120]
[331404113,1720347125649,-500.0,0.00044931,120]
[331404114,1720347125660,-500.0,0.00044931,120]
[331404115,1720347125671,-681.62,0.00044931,120]
[331404116,1720347125682,-841.38,0.00044931,120]
[331404117,1720347125692,-19997.62,0.00044931,120]
[331404118,1720347125703,-500.0,0.00044931,120]
[331404119,1720347125714,-500.0,0.00044931,120]
[331404120,1720347125724,-500.0,0.00044931,120]
[331404121,1720347125734,-1478.86,0.00044931,120]
[331404122,1720347125745,-500.0,0.00044931,120]
[331404123,1720347125755,-323.1493007,0.00044931,120]
[331404124,1720347125765,-9165.57,0.00044931,120]
[331404125,1720347125775,-500.0,0.00044931,120]
[331404126,1720347125785,-500.0,0.00044931,120]
[331404127,1720347125800,-500.0,0.00044931,120]
[331404128,1720347125810,-500.0,0.00044931,120]
[331404129,1720347125819,-500.0,0.00044931,120]
[331404130,1720347125829,-2498.75,0.00044931,120]
[331404131,1720347125840,-500.0,0.00044931,120]
[331404132,1720347125850,-500.0,0.00044931,120]
[331404133,1720347125860,-500.0,0.00044931,120]
[331404134,1720347125871,-1179.34,0.00044931,120]
[331404135,1720347125883,-500.0,0.00044931,120]
[331404136,1720347125893,-500.0,0.00044931,120]
[331404137,1720347125902,-177.99312378,0.00044931,120]
[331404138,1720347125913,-808.69,0.00044931,120]
[331404139,1720347125923,-500.0,0.00044931,120]
[331404140,1720347125933,-500.0,0.00044931,120]
[331404141,1720347125943,-1048.51,0.00044931,120]
[331404142,1720347125952,-2474.14,0.00044931,120]
[331404143,1720347125963,-539.13,0.00044931,120]
[331404144,1720347125972,-500.0,0.00044931,120]
[331404145,1720347125983,-587.02,0.00044931,120]
[331404146,1720347125994,-500.0,0.00044931,120]
[331404147,1720347126004,-500.0,0.00044931,30]
[331404148,1720347126014,-500.0,0.00044931,120]
[331404149,1720347126024,-3741.22,0.00044931,120]
[331404150,1720347126035,-2000.34,0.00044931,120]
[331404151,1720347126046,-531.11,0.00044931,120]
[331404152,1720347126055,-500.0,0.00044931,120]
[331404153,1720347126066,-780.81,0.00044931,120]
[331404154,1720347126076,-500.0,0.00044931,120]
[331404155,1720347126085,-500.0,0.00044931,120]
[331404156,1720347126095,-500.0,0.00044931,120]
[331404157,1720347126105,-500.0,0.00044931,120]
[331404158,1720347126117,-500.0,0.00044931,120]
[331404159,1720347126126,-19236.53,0.00044931,120]
[331404160,1720347126137,-500.0,0.00044931,120]
[331404161,1720347126147,-500.0,0.00044931,120]
[331404162,1720347126157,-3413.69,0.00044931,120]
[331404163,1720347126167,-500.0,0.00044931,120]
[331404164,1720347126176,-500.0,0.00044931,120]
[331404165,1720347126186,-1121.56,0.00044931,120]
[331404166,1720347126196,-500.0,0.00044931,120]
[331404167,1720347126206,-1250.27,0.00044931,120]
[331404168,1720347126216,-500.0,0.00044931,120]
[331404169,1720347126225,-500.0,0.00044931,120]
[331404170,1720347126235,-500.0,0.00044931,120]
[331404171,1720347126245,-500.0,0.00044931,120]
[331404172,1720347126254,-500.0,0.00044931,120]
[331404173,1720347126264,-500.0,0.00044931,120]
[331404174,1720347126273,-500.0,0.00044931,120]
[331404175,1720347126284,-734.73,0.00044931,120]
[331404176,1720347126294,-1092.13,0.00044931,120]
[331404177,1720347126304,-500.0,0.00044931,120]
[331404178,1720347126313,-532.80818794,0.00044931,120]
[331404179,1720347126323,-1828.14,0.00044931,120]
[331404180,1720347126332,-500.0,0.00044931,120]
[331404181,1720347126343,-2409.9,0.00044931,120]
[331404182,1720347126352,-1905.14,0.00044931,120]
[331404183,1720347126362,-1746.38,0.00044931,120]
[331404184,1720347126372,-882.47,0.00044931,120]
[331404185,1720347126382,-2825.71,0.00044931,120]
[331404186,1720347126393,-500.0,0.00044931,120]
[331404187,1720347126636,-500.0,0.00044931,120]
[331404188,1720347126650,-639.95,0.00044931,120]
[331404189,1720347126661,-500.0,0.00044931,120]
[331404190,1720347126671,-500.0,0.00044931,120]
[331404191,1720347126682,-500.0,0.00044931,120]
[331404192,1720347126692,-1399.76,0.00044931,120]
[331404193,1720347126702,-1399.76,0.00044931,120]
[331404194,1720347126711,-1122.0,0.00044931,120]
[331404195,1720347126721,-1122.0,0.00044931,120]
[331404196,1720347126731,-500.0,0.00044931,120]
[331404197,1720347126741,-1802.35,0.00044931,120]
[331404198,1720347126750,-1426.86,0.00044931,120]
[331404199,1720347126760,-500.0,0.00044931,120]
[331404200,1720347126770,-277.09,0.00044931,120]
[331404201,1720347126780,-500.0,0.00044931,120]
[331404202,1720347126792,-500.0,0.00044931,120]
[331404203,1720347126803,-500.0,0.00044931,120]
[331404204,1720347126813,-500.0,0.00044931,120]
[331404205,1720347126823,-500.0,0.00044931,120]
[331404206,1720347126834,-1266.29,0.00044931,120]
[331404207,1720347126845,-500.0,0.00044931,120]
[331404208,1720347126855,-500.0,0.00044931,120]
[331404209,1720347126864,-500.0,0.00044931,120]
[331404210,1720347126876,-500.0,0.00044931,120]
[331404211,1720347126887,-500.0,0.00044931,120]
[331404212,1720347126898,-500.0,0.00044931,120]
[331404213,1720347126907,-626.78,0.00044931,120]
[331404214,1720347126918,-500.0,0.00044931,120]
[331404215,1720347126929,-409.9,0.00044931,120]
[331404216,1720347126941,-500.0,0.00044931,120]
[331404217,1720347126951,-500.0,0.00044931,120]
[331404218,1720347126961,-500.0,0.00044931,120]
[331404219,1720347126972,-943.8,0.00044931,120]
[331404220,1720347126981,-264.78,0.00044931,120]
[331404221,1720347126991,-500.0,0.00044931,120]
[331404222,1720347127001,-500.0,0.00044931,120]
[331404223,1720347127012,-2629.96,0.00044931,120]
[331404224,1720347127022,-1281.3,0.00044931,120]
[331404225,1720347127032,-500.0,0.00044931,120]
[331404226,1720347127042,-500.0,0.00044931,120]
[331404227,1720347127052,-500.0,0.00044931,120]
[331404228,1720347127062,-500.0,0.00044931,120]
[331404229,1720347127072,-500.0,0.00044931,120]
[331404230,1720347127083,-445.93,0.00044931,120]
[331404231,1720347127094,-500.0,0.00044931,120]
[331404232,1720347127105,-500.0,0.00044931,120]
[331404233,1720347127117,-500.0,0.00044931,120]
[331404234,1720347127128,-749.98,0.00044931,120]
[331404235,1720347127138,-490.29,0.00044931,120]
[331404236,1720347127148,-500.0,0.00044931,120]
[331404237,1720347127159,-686.76,0.00044931,120]
[331404238,1720347127168,-500.0,0.00044931,120]
[331404239,1720347127178,-1167.5,0.00044931,120]
[331404240,1720347127193,-818.05,0.00044931,120]
[331404241,1720347127204,-500.0,0.00044931,120]
[331404242,1720347127214,-718.68,0.00044931,120]
[331404243,1720347127224,-221.61,0.00044931,120]
[331404244,1720347127236,-2844.1,0.00044931,120]
[331404245,1720347127246,-389.22,0.00044931,120]
[331404246,1720347127255,-500.0,0.00044931,21]
[331404247,1720347127265,-500.0,0.00044931,120]
[331404248,1720347127275,-500.0,0.00044931,120]
[331404249,1720347127284,-500.0,0.00044931,120]
[331404250,1720347127293,-500.0,0.00044931,120]
[331404251,1720347127303,-500.0,0.00044931,120]
[331404252,1720347127313,-500.0,0.00044931,120]
[331404253,1720347127322,-500.0,0.00044931,120]
[331404254,1720347127332,-500.0,0.00044931,120]
[331404255,1720347127341,-535.4,0.00044931,120]
[331404256,1720347127351,-500.0,0.00044931,120]
[331404257,1720347127362,-280.31,0.00044931,120]